[Event "WJCC U20 Girls 2019"]
[Site "New Delhi"]
[Date "2019.10.17"]
[Round "3.39"]
[White "Shivika Rohilla"]
[Black "Bakshi, Rutuja"]
[Result "0-1"]
[ECO "C09"]
[WhiteElo "1721"]
[BlackElo "2029"]
[Annotator "NA RC"]
[PlyCount "102"]
[EventDate "2019.10.15"]
[EventType "swiss"]
[EventCountry "IND"]
[SourceTitle "playchess.com"]
[Source "ChessBase"]
[SourceQuality "1"]
[TimeControl "40/5400+30:1800+30"]

1. e4 {[%emt 0:00:00]} e6 {[%emt 0:00:00]} 2. d4 {[%emt 0:00:00]} d5 {[%emt 0:00:02]} 3. Nd2 {[%emt 0:00:00]} c5 {[%emt 0:00:04]} 4. exd5 {[%emt 0:00:15]} exd5 {[%emt 0:00:04]} 5. Ngf3 {[%emt 0:00:44]} Nc6 {[%emt 0:00:22]} 6. Bb5 {[%emt 0:01:19]} Bd6 {[%emt 0:01:41]} 7. dxc5 {[%emt 0:00:33]} Bxc5 {[%emt 0:00:06]} 8. Nb3 {[%emt 0:00:33]} Bd6 {[%emt 0:00:40]} 9. O-O {[%emt 0:01:13]} Nge7 {[%emt 0:00:05]} 10. Be3 {[%emt 0:08:08]} Bg4 {[%emt 0:10:25] C09: French Tarrasch: 3...c5 4 exd5 exd5 5 Ngf3 Nc6} (10... O-O 11. Bd3 h6 12. h3 Bf5 13. Re1 Re8 14. c3 Be4 15. Nc5 Bxf3 16. Qxf3 Ne5 17. Qd1 Qc7 18. Nb3 Nxd3 19. Qxd3 {½-½ (34) Godena,M (2506)-Sedina,E (2428) Turin 2002}) 11. h3 {[%emt 0:01:32]} Bh5 12. Nbd4 {[%emt 0:14:01]} O-O {[%emt 0:05:40]} 13. Be2 {[%emt 0:07:28]} a6 $146 {[%emt 0:08:38]} ({Predecessor:} 13... Rc8 14. c3 Bb8 15. Qd2 Bg6 16. Bf4 Bxf4 17. Qxf4 Qb6 18. Qd2 {½-½ (46) Guo,A (1999)-Goss,M (2141) Cocoa Beach 2016}) 14. Qd2 {[%emt 0:06:50]} Qc7 {[%emt 0:11:13]} 15. c3 {[%emt 0:02:20]} Na5 {[%emt 0:05:47]} 16. Rfd1 {[%emt 0:07:32]} Nc4 {[%emt 0:11:39]} 17. Bxc4 {[%emt 0:00:14]} Qxc4 {[%emt 0:01:21]} 18. Bf4 {[%emt 0:08:59]} Bxf3 {[%emt 0:16:22]} 19. gxf3 {[%emt 0:00:44]} Bxf4 {[%emt 0:02:51]} 20. Qxf4 {[%emt 0:00:03]} Ng6 {[%emt 0:00:36]} 21. Qg3 {[%emt 0:01:55]} Rae8 {[%emt 0:08:23]} 22. a3 {[%emt 0:03:59]} Qc8 {[%emt 0:05:30]} 23. Re1 {[%emt 0:01:31]} Qd7 {[%emt 0:00:39]} 24. Rad1 {[%emt 0:10:08]} f6 {[%emt 0:04:03]} 25. Nc2 {[%emt 0:04:26]} Re5 {[%emt 0:02:09]} 26. f4 {[%emt 0:06:09]} Rxe1+ {[%emt 0:02:03]} 27. Rxe1 {[%emt 0:00:35]} Qf5 {[%emt 0:00:13]} 28. Ne3 {[%emt 0:04:15]} Qxf4 {[%emt 0:00:12]} 29. Rd1 {[%emt 0:00:33]} Rd8 {[%emt 0:02:27]} 30. Nxd5 {[%emt 0:00:47]} Qxg3+ {[%emt 0:00:40]} 31. fxg3 {[%emt 0:00:01]} Kf7 {[%emt 0:00:07]} 32. Ne3 {[%emt 0:01:16]} Rxd1+ {[%emt 0:00:42]} 33. Nxd1 {[%emt 0:00:01]} Ke6 {[%emt 0:00:15]} 34. Kf2 {[%emt 0:02:41]} Kd5 {[%emt 0:00:29]} 35. b3 {[%emt 0:00:40]} b5 {[%emt 0:01:06]} 36. Ke3 {[%emt 0:00:28]} Ne5 {[%emt 0:00:30]} 37. Nf2 {[%emt 0:01:05]} a5 {[%emt 0:00:41]} 38. Kd2 {[%emt 0:04:41]} (38. h4 $11 {remains equal.}) 38... a4 {[%emt 0:00:13]} 39. Kc2 {[%emt 0:00:29]} f5 {[%emt 0:00:45]} 40. h4 {[%emt 0:00:50]} h6 {[%emt 0:00:19]} 41. Kb2 {[%emt 0:30:38]} g5 {[%emt 0:30:37]} 42. hxg5 {[%emt 0:00:02]} hxg5 {[%emt 0:00:11]} 43. Kc2 {[%emt 0:00:00] [#]} g4 $1 {[%emt 0:00:00]} 44. Kb2 $2 {[%emt 0:00:00] [#]} (44. c4+ bxc4 45. bxa4) 44... Nd7 $19 {[%emt 0:00:00]} 45. Kc2 {[%emt 0:00:00]} Nc5 {[%emt 0:00:00]} 46. b4 {[%emt 0:00:00]} Ne4 {[%emt 0:00:00]} 47. Nd3 {[%emt 0:00:00]} Nxg3 {[%emt 0:00:00]} 48. Nf4+ {[%emt 0:00:00]} Ke4 {[%emt 0:00:00]} 49. Nd3 {[%emt 0:00:00]} Nf1 {[%emt 0:00:00]} 50. Nf2+ {[%emt 0:00:00]} Kf3 {[%emt 0:00:00]} 51. Nd3 {[%emt 0:00:00]} g3 {[%emt 0:00:00]} 0-1

[Event "WJCC U20 Girls 2019"]
[Site "New Delhi"]
[Date "2019.10.17"]
[Round "3.40"]
[White "Bauyrzhan, Arnash"]
[Black "Dahampriya, H K T Dewnethmie"]
[Result "1-0"]
[ECO "B51"]
[WhiteElo "2075"]
[BlackElo "1629"]
[Annotator "NA"]
[PlyCount "87"]
[EventDate "2019.10.15"]
[EventType "swiss"]
[EventCountry "IND"]
[SourceTitle "playchess.com"]
[Source "ChessBase"]
[SourceQuality "1"]
[TimeControl "40/5400+30:1800+30"]

1. e4 {[%emt 0:00:00]} c5 {[%emt 0:00:00]} 2. Nf3 {[%emt 0:00:00]} d6 {[%emt 0:00:00]} 3. Bb5+ {[%emt 0:00:08]} Nd7 {[%emt 0:00:09]} 4. d4 {[%emt 0:00:54]} cxd4 {[%emt 0:01:19]} 5. Qxd4 {[%emt 0:00:07]} a6 {[%emt 0:00:28]} 6. Bxd7+ {[%emt 0:00:19]} Bxd7 {[%emt 0:01:24]} 7. O-O {[%emt 0:00:34]} e6 {[%emt 0:00:48]} 8. Bg5 {[%emt 0:01:28]} f6 {[%emt 0:02:49]} 9. Bd2 {[%emt 0:02:44]} Ne7 {[%emt 0:00:15]} 10. Qxd6 {[%emt 0:03:31]} Rc8 {[%emt 0:05:36]} 11. Nc3 {[%emt 0:04:54]} Nd5 {[%emt 0:09:31]} 12. Qg3 {[%emt 0:00:15]} Nb6 {[%emt 0:00:17]} 13. Rad1 {[%emt 0:03:14]} Nc4 {[%emt 0:02:26]} 14. Bc1 {[%emt 0:00:38]} Qb6 {[%emt 0:01:20]} 15. e5 {[%emt 0:19:06]} f5 {[%emt 0:03:19]} 16. b3 {[%emt 0:07:53]} Na5 {[%emt 0:01:08]} 17. Rd3 {[%emt 0:03:06]} Nc6 {[%emt 0:17:26]} 18. Na4 {[%emt 0:04:09]} Qa5 {[%emt 0:02:04]} 19. Rfd1 {[%emt 0:09:09]} Nb8 {[%emt 0:06:05]} 20. Bd2 {[%emt 0:11:13]} Qc7 {[%emt 0:00:33]} 21. Rc3 {[%emt 0:01:52]} Qd8 {[%emt 0:03:25]} 22. Bg5 {[%emt 0:00:37]} Qa5 {[%emt 0:06:51]} 23. Rxc8+ {[%emt 0:00:30]} Bxc8 {[%emt 0:00:06]} 24. Rd8+ {[%emt 0:00:59]} Qxd8 {[%emt 0:00:06]} 25. Bxd8 {[%emt 0:00:06]} Kxd8 {[%emt 0:00:05]} 26. Ng5 {[%emt 0:01:11]} Kc7 {[%emt 0:04:15]} 27. Qe3 {[%emt 0:01:54]} Nc6 {[%emt 0:00:45]} 28. Nb6 {[%emt 0:01:34]} h6 {[%emt 0:00:48]} 29. Nf7 {[%emt 0:01:08]} Rg8 {[%emt 0:01:04]} 30. Nxc8 {[%emt 0:01:05]} Kxc8 {[%emt 0:00:10]} 31. Qb6 {[%emt 0:00:56]} Kb8 {[%emt 0:03:11]} 32. Nd8 {[%emt 0:02:33]} Nxd8 {[%emt 0:00:31]} 33. Qxd8+ {[%emt 0:00:07]} Ka7 {[%emt 0:00:06]} 34. c4 {[%emt 0:01:08]} g5 {[%emt 0:00:33]} 35. c5 {[%emt 0:00:49]} Rh8 {[%emt 0:00:23]} 36. b4 {[%emt 0:01:59]} Bg7 {[%emt 0:00:26]} 37. Qc7 {[%emt 0:00:13]} Bxe5 {[%emt 0:00:56]} 38. Qxe5 {[%emt 0:00:15]} Rd8 {[%emt 0:00:04]} 39. g3 {[%emt 0:01:12]} Rd2 {[%emt 0:00:21]} 40. Qxe6 {[%emt 0:01:05]} f4 {[%emt 0:00:12]} 41. gxf4 {[%emt 0:30:23]} gxf4 {[%emt 0:30:06]} 42. Kg2 {[%emt 0:00:38]} h5 {[%emt 0:00:08]} 43. Qf7 {[%emt 0:00:31]} h4 {[%emt 0:00:11]} 44. c6 {[%emt 0:00:58]} 1-0

[Event "WJCC U20 Girls 2019"]
[Site "New Delhi"]
[Date "2019.10.17"]
[Round "3.41"]
[White "Lohani, Sujana"]
[Black "Ortiz Verdezoto, Anahi"]
[Result "0-1"]
[ECO "E06"]
[WhiteElo "1671"]
[BlackElo "2055"]
[Annotator "NA"]
[PlyCount "82"]
[EventDate "2019.10.15"]
[EventType "swiss"]
[EventCountry "IND"]
[SourceTitle "playchess.com"]
[Source "ChessBase"]
[SourceQuality "1"]
[TimeControl "40/5400+30:1800+30"]

1. d4 d5 {[%emt 0:00:00]} 2. Nf3 {[%emt 0:01:07]} Nf6 {[%emt 0:00:00]} 3. c4 {[%emt 0:00:03]} e6 {[%emt 0:00:00]} 4. g3 {[%emt 0:00:54]} Be7 {[%emt 0:00:20]} 5. Bg2 {[%emt 0:03:09]} O-O {[%emt 0:00:15]} 6. O-O {[%emt 0:00:07]} dxc4 {[%emt 0:00:41]} 7. Ne5 {[%emt 0:04:49]} c5 {[%emt 0:02:02]} 8. dxc5 {[%emt 0:07:39]} Qc7 {[%emt 0:00:07]} 9. Nxc4 {[%emt 0:14:27]} Bxc5 {[%emt 0:00:10]} 10. Qb3 {[%emt 0:01:59]} Nc6 {[%emt 0:04:52]} 11. Be3 {[%emt 0:11:22]} Bxe3 {[%emt 0:04:28]} 12. Qxe3 {[%emt 0:03:12]} Nd5 {[%emt 0:00:27]} 13. Qc5 {[%emt 0:12:05]} b6 {[%emt 0:14:26]} 14. Qd6 {[%emt 0:07:32]} Qxd6 {[%emt 0:00:07]} 15. Nxd6 {[%emt 0:00:04]} Ba6 {[%emt 0:01:10]} 16. Nd2 {[%emt 0:06:59]} (16. Nc3 $11 {keeps the balance.}) 16... Bxe2 {[%emt 0:02:50]} 17. Rfc1 {[%emt 0:04:02]} Ncb4 {[%emt 0:05:58]} 18. a3 $11 {[%emt 0:02:31]} Nd3 {[%emt 0:00:30]} 19. Rc2 {[%emt 0:00:22]} Nc5 {[%emt 0:01:55]} 20. Bf1 {[%emt 0:04:05]} Bxf1 {[%emt 0:01:19]} 21. Kxf1 {[%emt 0:00:30]} Rfd8 {[%emt 0:03:46]} 22. N6e4 {[%emt 0:04:45]} Nd3 {[%emt 0:13:54]} 23. Ke2 {[%emt 0:00:54]} Ne7 {[%emt 0:02:17]} 24. Nf3 {[%emt 0:01:33]} f5 {[%emt 0:00:39]} 25. Neg5 {[%emt 0:02:36]} e5 {[%emt 0:00:27]} 26. Rc7 {[%emt 0:02:19]} Nd5 {[%emt 0:02:49]} 27. Rxg7+ {[%emt 0:01:42]} Kxg7 {[%emt 0:00:03]} 28. Ne6+ {[%emt 0:00:07]} Kf6 {[%emt 0:00:15]} 29. Nxd8 {[%emt 0:00:53]} Rxd8 {[%emt 0:00:15]} 30. Kxd3 {[%emt 0:01:33]} e4+ {[%emt 0:00:02]} 31. Ke2 {[%emt 0:01:12]} exf3+ {[%emt 0:00:03]} 32. Kxf3 {[%emt 0:00:12]} Rc8 {[%emt 0:00:03]} 33. Rd1 {[%emt 0:00:21]} Ke6 {[%emt 0:00:16]} 34. Rd2 {[%emt 0:00:29]} b5 {[%emt 0:00:56]} 35. Kg2 {[%emt 0:00:54]} a5 {[%emt 0:00:19]} 36. Kh3 {[%emt 0:00:22]} b4 {[%emt 0:01:59]} 37. axb4 {[%emt 0:00:38]} axb4 {[%emt 0:00:04]} 38. Kh4 {[%emt 0:00:07]} Rc4+ {[%emt 0:01:48]} 39. Kg5 {[%emt 0:00:27]} Rg4+ {[%emt 0:00:37]} 40. Kh6 {[%emt 0:01:02]} Nf6 {[%emt 0:00:11]} 41. Re2+ {[%emt 0:30:42]} Kf7 {[%emt 0:30:09]} 0-1

[Event "WJCC U20 Girls 2019"]
[Site "New Delhi"]
[Date "2019.10.17"]
[Round "3.42"]
[White "Fretel, Liza"]
[Black "Du Plessis, Anika"]
[Result "1-0"]
[ECO "D00"]
[WhiteElo "1877"]
[BlackElo "1594"]
[Annotator "NA RC"]
[PlyCount "129"]
[EventDate "2019.10.15"]
[EventType "swiss"]
[EventCountry "IND"]
[SourceTitle "playchess.com"]
[Source "ChessBase"]
[SourceQuality "1"]
[TimeControl "40/5400+30:1800+30"]

1. d4 {[%emt 0:00:00]} d5 {[%emt 0:00:00]} 2. Bf4 {[%emt 0:00:00]} Nf6 {[%emt 0:00:17]} 3. e3 {[%emt 0:00:37]} c5 {[%emt 0:03:11]} 4. c3 {[%emt 0:00:45]} Nc6 {[%emt 0:01:20]} 5. Nd2 {[%emt 0:00:13]} e6 {[%emt 0:03:04]} 6. Bd3 {[%emt 0:01:20]} cxd4 {[%emt 0:03:57]} 7. exd4 {[%emt 0:00:09]} Bd7 {[%emt 0:01:43] B13: Caro-Kann: Exchange Variation and Panov-Botvinnik Attack} (7... Bd6 8. Bxd6 Qxd6 9. Ngf3 Nh5 10. O-O g6 11. Re1 f6 12. c4 Kf7 13. a3 b6 14. b4 Nf4 15. Bf1 g5 16. g3 Ng6 {0-1 (51) Laznicka,V (2675)-Sanal,V (2490) Skopje 2018}) 8. Ngf3 {[%emt 0:01:21]} Qb6 {[%emt 0:02:39]} 9. Qb3 {[%emt 0:03:45]} Qxb3 {[%emt 0:02:58]} 10. axb3 {[%emt 0:00:10]} Nh5 {[%emt 0:03:03]} 11. Bg3 {[%emt 0:04:26]} h6 $146 {[%emt 0:04:40]} ({Predecessor:} 11... Nxg3 12. hxg3 h6 {1-0 (43) Vager,B (2112)-Henrichsen,E (1940) Kaunas 2012}) 12. b4 {[%emt 0:06:49]} Nxg3 {[%emt 0:06:56]} 13. hxg3 {[%emt 0:00:06]} Bd6 {[%emt 0:00:59]} 14. b5 {[%emt 0:01:56]} Ne7 {[%emt 0:02:34]} 15. g4 {[%emt 0:12:04]} Rg8 {[%emt 0:28:49]} 16. O-O {[%emt 0:19:34]} Nc8 {[%emt 0:05:55]} 17. Ne5 {[%emt 0:08:38]} Nb6 {[%emt 0:02:36]} 18. f4 {[%emt 0:00:49]} Ke7 {[%emt 0:08:29]} 19. f5 {[%emt 0:10:53]} Bc7 {[%emt 0:00:44]} 20. Nb3 {[%emt 0:02:33]} Bxe5 {[%emt 0:03:30]} 21. dxe5 {[%emt 0:00:05]} Nc4 {[%emt 0:02:14]} 22. Bxc4 {[%emt 0:00:44]} dxc4 {[%emt 0:00:04]} 23. Nd4 {[%emt 0:00:12]} a6 {[%emt 0:03:32]} 24. b6 {[%emt 0:03:53]} a5 {[%emt 0:00:53]} 25. fxe6 {[%emt 0:04:57]} Bxe6 {[%emt 0:00:38]} 26. Nxe6 {[%emt 0:02:20]} Kxe6 {[%emt 0:00:04]} 27. Rad1 {[%emt 0:04:46]} Rgd8 {[%emt 0:02:27]} 28. Rd6+ {[%emt 0:01:29]} Rxd6 {[%emt 0:00:04]} 29. exd6 {[%emt 0:00:04]} Rd8 {[%emt 0:00:46]} 30. Rf5 {[%emt 0:01:47]} Rxd6 {[%emt 0:02:20]} 31. Rxa5 {[%emt 0:00:25]} Rxb6 {[%emt 0:01:19]} 32. Rc5 {[%emt 0:00:32]} Rxb2 {[%emt 0:00:54]} 33. Rxc4 {[%emt 0:00:05]} Rb6 {[%emt 0:00:46]} 34. Kf2 {[%emt 0:01:20]} Rc6 {[%emt 0:00:36]} 35. Re4+ {[%emt 0:00:28]} Kd5 {[%emt 0:01:21]} 36. Re7 {[%emt 0:01:58]} Rf6+ {[%emt 0:00:30]} 37. Kg3 {[%emt 0:00:43]} b6 {[%emt 0:00:55]} 38. Rd7+ {[%emt 0:02:22]} Kc6 {[%emt 0:00:19]} 39. Re7 {[%emt 0:00:27]} Kd6 {[%emt 0:00:06]} 40. Rb7 {[%emt 0:00:09]} Kc6 {[%emt 0:00:13]} 41. Re7 {[%emt 0:30:12]} b5 {[%emt 0:32:17]} 42. Ra7 {[%emt 0:04:57]} Kb6 {[%emt 0:00:00]} 43. Re7 {[%emt 0:00:00]} Rc6 {[%emt 0:00:00]} 44. Re3 {[%emt 0:00:00]} Rc7 {[%emt 0:00:00]} 45. Kf2 {[%emt 0:00:00]} Kc5 {[%emt 0:00:00]} 46. Ke2 {[%emt 0:00:00]} Rd7 {[%emt 0:00:00]} 47. Re4 {[%emt 0:00:00]} Rd6 {[%emt 0:00:00]} 48. Rb4 {[%emt 0:00:00]} Re6+ {[%emt 0:00:00]} 49. Kf2 {[%emt 0:00:00]} Ra6 {[%emt 0:00:00]} 50. Rf4 {[%emt 0:00:00]} Ra3 $2 {[%emt 0:00:00]} (50... Ra2+ $19 51. Kf1 f6) 51. Rxf7 {[%emt 0:00:00]} Rxc3 {[%emt 0:00:00]} 52. Rxg7 {[%emt 0:00:00]} Kc4 {[%emt 0:00:00]} 53. Rh7 {[%emt 0:00:00]} Kb3 {[%emt 0:00:00]} 54. Rxh6 {[%emt 0:00:00]} b4 {[%emt 0:00:00]} 55. Rb6 {[%emt 0:00:00]} Ka3 {[%emt 0:00:00]} 56. g5 {[%emt 0:00:00]} b3 {[%emt 0:00:00]} 57. g6 {[%emt 0:00:00]} Rc7 $11 {[%emt 0:00:00]} 58. Ke3 {[%emt 0:00:00]} Ka2 {[%emt 0:00:00]} 59. Kf4 {[%emt 0:01:53]} b2 {[%emt 0:01:24]} 60. g4 {[%emt 0:00:38]} Rc4+ {[%emt 0:01:35]} 61. Kg5 {[%emt 0:00:15]} Rc5+ {[%emt 0:03:52]} 62. Kh6 {[%emt 0:00:35]} Rc4 {[%emt 0:01:24]} 63. Kh5 {[%emt 0:00:38]} Rc5+ {[%emt 0:01:20]} 64. g5 {[%emt 0:00:10]} Rc7 {[%emt 0:00:56]} 65. Kh6 {[%emt 0:00:23]} 1-0

[Event "WJCC U20 Girls 2019"]
[Site "New Delhi"]
[Date "2019.10.17"]
[Round "3.43"]
[White "Ghosh Samriddhaa"]
[Black "Reid, Caitlin"]
[Result "1-0"]
[ECO "B34"]
[WhiteElo "1867"]
[BlackElo "1489"]
[Annotator "NA"]
[PlyCount "47"]
[EventDate "2019.10.15"]
[EventType "swiss"]
[EventCountry "IND"]
[SourceTitle "playchess.com"]
[Source "ChessBase"]
[SourceQuality "1"]
[TimeControl "40/5400+30:1800+30"]

1. e4 {[%emt 0:00:00]} c5 {[%emt 0:00:00]} 2. Nf3 {[%emt 0:00:00]} Nc6 {[%emt 0:00:00]} 3. d4 {[%emt 0:00:00]} cxd4 {[%emt 0:00:04]} 4. Nxd4 {[%emt 0:00:05]} Nf6 {[%emt 0:00:40]} 5. Nc3 {[%emt 0:00:12]} e5 {[%emt 0:01:28]} 6. Ndb5 {[%emt 0:00:44]} d6 {[%emt 0:01:40]} 7. Bg5 {[%emt 0:00:37]} a6 {[%emt 0:01:01]} 8. Na3 {[%emt 0:00:23]} h6 {[%emt 0:01:50]} 9. Bxf6 {[%emt 0:04:39]} Qxf6 {[%emt 0:00:34]} 10. Nd5 {[%emt 0:05:25]} Qd8 {[%emt 0:00:14]} 11. Nc4 {[%emt 0:03:05]} b5 {[%emt 0:00:40]} 12. Nce3 {[%emt 0:02:20]} Be7 {[%emt 0:09:41]} 13. c3 {[%emt 0:08:43]} O-O {[%emt 0:01:37]} 14. a4 {[%emt 0:04:23]} Rb8 {[%emt 0:05:43]} 15. axb5 {[%emt 0:04:46]} axb5 {[%emt 0:00:08]} 16. b4 {[%emt 0:00:12]} f5 {[%emt 0:00:33]} 17. exf5 {[%emt 0:08:14]} Bxf5 {[%emt 0:00:15]} 18. Be2 {[%emt 0:03:22]} Be4 {[%emt 0:10:20]} 19. f3 {[%emt 0:13:05]} Bg6 {[%emt 0:01:24]} 20. Ra6 {[%emt 0:03:47]} Bh4+ {[%emt 0:08:00]} 21. g3 {[%emt 0:06:54]} Qc8 {[%emt 0:00:50]} 22. Rxc6 {[%emt 0:07:28]} Bxg3+ {[%emt 0:00:14]} 23. hxg3 {[%emt 0:00:08]} Qxc6 {[%emt 0:00:08]} 24. Ne7+ {[%emt 0:00:05]} 1-0

[Event "WJCC U20 Girls 2019"]
[Site "New Delhi"]
[Date "2019.10.17"]
[Round "3.44"]
[White "Rousseau, Christilla"]
[Black "Rindhiya V"]
[Result "1/2-1/2"]
[ECO "A80"]
[WhiteElo "1648"]
[BlackElo "1817"]
[Annotator "NA RC"]
[PlyCount "98"]
[EventDate "2019.10.15"]
[EventType "swiss"]
[EventCountry "IND"]
[SourceTitle "playchess.com"]
[Source "ChessBase"]
[SourceQuality "1"]
[TimeControl "40/5400+30:1800+30"]

1. d4 {[%emt 0:00:00]} f5 {[%emt 0:00:00]} 2. Bf4 {[%emt 0:03:58]} Nf6 {[%emt 0:00:00]} 3. e3 {[%emt 0:00:20]} e6 {[%emt 0:00:02]} 4. c3 {[%emt 0:01:30]} (4. Be2 Nc6 5. Nf3 Ne7 6. O-O Ng6 7. c4 b6 8. Nc3 Bb4 9. Rc1 Bb7 10. Nb5 Nxf4 11. exf4 a6 {½-½ (53) Ni,H (2668)-Maghsoodloo,P (2656) Abu Dhabi 2019}) 4... d5 {[%emt 0:00:14]} 5. Nd2 {[%emt 0:00:37]} Be7 {[%emt 0:00:14]} 6. Ngf3 {[%emt 0:01:00] A80: Dutch Defence: Unusual White second moves} O-O {[%emt 0:00:16]} 7. h3 {[%emt 0:01:15]} Ne4 {[%emt 0:00:19]} 8. Bd3 {[%emt 0:01:33]} b6 {[%emt 0:01:16]} 9. Rc1 $146 {[%emt 0:02:11]} ({Predecessor:} 9. Ne5 Bb7 10. Ndf3 Nd7 11. g4 c5 12. gxf5 exf5 13. Rg1 cxd4 14. exd4 Bf6 15. Qe2 Rc8 16. O-O-O a5 17. Bb5 Nxe5 18. dxe5 Qc7 {1-0 (18) Basso,L (1826)-Antignani,L (1985) Giugliano 2009}) 9... Bb7 {[%emt 0:01:36]} 10. Ne5 {[%emt 0:06:01]} Nd7 {[%emt 0:04:39]} 11. Nxd7 {[%emt 0:04:14]} Qxd7 {[%emt 0:00:05]} 12. Nf3 {[%emt 0:00:17]} c5 {[%emt 0:07:16]} 13. Ne5 {[%emt 0:01:24]} Qd8 {[%emt 0:01:15]} 14. O-O {[%emt 0:02:18]} Nf6 {[%emt 0:14:05]} 15. Re1 {[%emt 0:09:05]} c4 {[%emt 0:05:48]} 16. Bf1 {[%emt 0:05:45]} b5 {[%emt 0:02:47]} 17. b3 {[%emt 0:13:41]} Qa5 {[%emt 0:07:20]} 18. Qc2 {[%emt 0:02:39]} Rac8 {[%emt 0:09:31]} 19. b4 {[%emt 0:03:34]} Qa3 {[%emt 0:00:48]} 20. f3 {[%emt 0:05:45]} a5 {[%emt 0:00:55]} 21. bxa5 {[%emt 0:01:20]} Qxa5 {[%emt 0:01:06]} 22. g4 {[%emt 0:00:28]} g6 {[%emt 0:12:52]} 23. Bh6 {[%emt 0:10:19]} Rfd8 {[%emt 0:01:10]} 24. Qf2 {[%emt 0:00:50]} Nd7 {[%emt 0:06:12]} 25. Qg3 {[%emt 0:04:53]} Qc7 {[%emt 0:01:34]} 26. f4 {[%emt 0:00:55]} Nxe5 {[%emt 0:03:40]} 27. fxe5 {[%emt 0:00:06]} b4 {[%emt 0:01:30]} 28. gxf5 {[%emt 0:04:21]} exf5 {[%emt 0:00:07]} 29. Re2 {[%emt 0:00:50]} bxc3 {[%emt 0:02:34]} 30. Rf2 {[%emt 0:00:52]} Qd7 {[%emt 0:02:40]} 31. h4 {[%emt 0:00:20]} Kf7 {[%emt 0:02:27]} 32. Bh3 {[%emt 0:01:25]} Rg8 {[%emt 0:05:24]} 33. Kh2 {[%emt 0:00:22]} Qe6 {[%emt 0:00:37]} 34. Rcf1 {[%emt 0:05:10]} Ke8 {[%emt 0:01:18]} 35. Rg1 {[%emt 0:02:38]} Kd7 {[%emt 0:00:24]} 36. Rb1 {[%emt 0:02:16]} Kc7 {[%emt 0:00:34]} 37. Rc2 {[%emt 0:01:18]} Bc6 {[%emt 0:00:36]} 38. Rxc3 {[%emt 0:01:32]} Rb8 {[%emt 0:00:09]} 39. Rcc1 {[%emt 0:00:05]} Rxb1 {[%emt 0:01:20]} 40. Rxb1 {[%emt 0:00:05]} c3 {[%emt 0:03:45]} 41. Qe1 {[%emt 0:06:32]} Ra8 $1 {[%emt 0:02:14]} 42. Qxc3 {[%emt 0:02:41]} Rxa2+ {[%emt 0:00:04]} 43. Kg3 {[%emt 0:01:02]} Qc8 {[%emt 0:06:37]} 44. Bg2 {[%emt 0:04:27]} Kd7 $2 {[%emt 0:02:20]} (44... f4+ $1 $11 45. Bxf4 Rxg2+ {[%mdl 64] Decoy} 46. Kxg2 Qg4+ {[%mdl 64] Double Attack} 47. Kh2 Qxh4+ 48. Kg2 Qg4+ 49. Kf2 Bh4+ 50. Kf1 g5) 45. Bf1 {[%emt 0:02:32]} (45. Rc1 $142 Bb7 46. Qxc8+ {[%mdl 64] Overworked Piece} Bxc8 47. Bxd5) 45... Ra7 $2 {[%emt 0:15:55]} (45... Ra8 46. Bf4 Ba4) 46. Bb5 {[%emt 0:04:13]} (46. Rc1 $142) 46... Rc7 {[%emt 0:00:50]} 47. Qb3 $18 {[%emt 0:02:51]} Ke6 {[%emt 0:03:22]} 48. Bxc6 {[%emt 0:06:32]} Rxc6 {[%emt 0:00:01]} 49. Qb7 {[%emt 0:00:09]} Qxb7 {[%emt 0:02:18]} 1/2-1/2

[Event "WJCC U20 Girls 2019"]
[Site "New Delhi"]
[Date "2019.10.17"]
[Round "3.45"]
[White "Jayaweera, Sayuni Gihansa"]
[Black "Yaakub, Nov Genevia Pslam"]
[Result "1-0"]
[ECO "D11"]
[WhiteElo "1788"]
[BlackElo "1316"]
[Annotator "NA"]
[PlyCount "71"]
[EventDate "2019.10.15"]
[EventType "swiss"]
[EventCountry "IND"]
[SourceTitle "playchess.com"]
[Source "ChessBase"]
[SourceQuality "1"]
[TimeControl "40/5400+30:1800+30"]

1. d4 {[%emt 0:00:00]} d5 {[%emt 0:00:00]} 2. c4 {[%emt 0:00:00]} c6 {[%emt 0:00:00]} 3. Nf3 {[%emt 0:00:00]} Nf6 {[%emt 0:00:16]} 4. Qc2 {[%emt 0:00:18]} e6 {[%emt 0:00:38]} 5. g3 {[%emt 0:00:11]} b6 {[%emt 0:01:32]} 6. Bg2 {[%emt 0:00:49]} Bb7 {[%emt 0:00:41]} 7. O-O {[%emt 0:00:27]} Be7 {[%emt 0:00:34]} 8. Nbd2 {[%emt 0:02:51]} Nbd7 {[%emt 0:01:18]} 9. e4 {[%emt 0:01:11]} dxe4 {[%emt 0:03:43]} 10. Nxe4 {[%emt 0:00:14]} c5 {[%emt 0:02:25]} 11. Nxf6+ {[%emt 0:00:57]} Nxf6 {[%emt 0:00:33]} 12. dxc5 {[%emt 0:06:34]} Bxc5 {[%emt 0:01:02]} 13. Ne5 {[%emt 0:02:43]} Bxg2 {[%emt 0:04:54]} 14. Qa4+ {[%emt 0:00:09]} Kf8 {[%emt 0:18:34]} 15. Kxg2 {[%emt 0:00:14]} Qc7 {[%emt 0:04:06]} 16. Bf4 {[%emt 0:02:17]} Bd6 {[%emt 0:08:10]} 17. Nd3 {[%emt 0:02:01]} Rd8 {[%emt 0:03:17]} 18. Rad1 {[%emt 0:01:57]} Bxf4 {[%emt 0:03:48]} 19. Nxf4 {[%emt 0:00:08]} Rxd1 {[%emt 0:02:05]} 20. Rxd1 {[%emt 0:00:18]} h5 {[%emt 0:04:12]} 21. h4 {[%emt 0:03:26]} g6 {[%emt 0:04:53]} 22. Qa3+ {[%emt 0:01:20]} Kg7 {[%emt 0:02:04]} 23. b3 {[%emt 0:01:19]} Ne4 {[%emt 0:11:10]} 24. Qb2+ {[%emt 0:04:35]} Kh7 {[%emt 0:01:59]} 25. Qd4 {[%emt 0:00:37]} Nc5 {[%emt 0:05:01]} 26. Qd6 {[%emt 0:01:59]} Qb7+ {[%emt 0:03:22]} 27. f3 {[%emt 0:00:10]} Rc8 {[%emt 0:01:31]} 28. b4 {[%emt 0:00:54]} Na6 {[%emt 0:02:21]} 29. Qd7 {[%emt 0:01:01]} Rc7 {[%emt 0:01:06]} 30. Qb5 {[%emt 0:00:24]} Nb8 {[%emt 0:01:52]} 31. Nxh5 {[%emt 0:04:48]} gxh5 {[%emt 0:07:41]} 32. Qxh5+ {[%emt 0:00:03]} Kg7 {[%emt 0:00:17]} 33. Qg5+ {[%emt 0:00:01]} Kh7 {[%emt 0:00:12]} 34. Rd8 {[%emt 0:00:06]} Rc8 {[%emt 0:01:07]} 35. Qg8+ {[%emt 0:01:02]} Kh6 {[%emt 0:00:04]} 36. Rxc8 {[%emt 0:00:08]} 1-0